[Event "New York Summer IM-C 2022"]
[Site "New York"]
[Date "2022.07.11"]
[Round "8.4"]
[White "Hardaway, Brewington"]
[Black "Martin Del Campo Cardenas, Roberto Abel"]
[Result "1-0"]
[ECO "B92"]
[WhiteElo "2175"]
[BlackElo "2245"]
[Annotator "ChessBase"]
[PlyCount "203"]
[EventDate "2022.07.08"]
[EventType "tourn"]
[EventCountry "USA"]
[SourceTitle "playchess.com"]
[Source "ChessBase"]
[SourceQuality "1"]
[TimeControl "5400+30"]

1. e4 {[%emt 0:00:01]} c5 {[%emt 0:01:50]} 2. Nf3 {[%emt 0:00:06]} d6 {[%emt 0:01:14]} 3. d4 {[%emt 0:00:15]} cxd4 {[%emt 0:00:09]} 4. Nxd4 {[%emt 0:00:05]} Nf6 {[%emt 0:00:28]} 5. Nc3 {[%emt 0:00:02]} a6 {[%emt 0:02:08]} 6. Be2 {[%emt 0:00:05]} e5 {[%emt 0:00:17]} 7. Nb3 {[%emt 0:00:01]} Be7 {[%emt 0:00:19]} 8. Be3 {[%emt 0:00:09]} O-O {[%emt 0:00:17]} 9. g4 {[%emt 0:00:41]} Be6 {[%emt 0:01:26]} 10. g5 {[%emt 0:01:53]} Nfd7 {[%emt 0:00:11]} 11. h4 {[%emt 0:00:28]} Nb6 {[%emt 0:01:01]} 12. Nd5 {[%emt 0:06:58]} Bxd5 {[%emt 0:06:29]} 13. exd5 {[%emt 0:00:01]} Na4 {[%emt 0:00:07]} 14. c3 {[%emt 0:21:59]} Nxb2 {[%emt 0:01:44]} 15. Qc2 {[%emt 0:00:17]} Na4 {[%emt 0:00:06]} 16. Bd3 {[%emt 0:01:26]} Kh8 {[%emt 0:10:24]} 17. Bxh7 {[%emt 0:07:12]} Nxc3 {[%emt 0:05:43]} 18. Bd3 {[%emt 0:08:16]} Nxd5 {[%emt 0:01:12]} 19. Qd1 {[%emt 0:00:48]} Kg8 {[%emt 0:39:29]} 20. Qh5 {[%emt 0:00:14]} g6 {[%emt 0:00:04]} 21. Bxg6 {[%emt 0:01:16]} fxg6 {[%emt 0:00:02]} 22. Qxg6+ {[%emt 0:00:07]} Kh8 {[%emt 0:00:01]} 23. Qh6+ {[%emt 0:00:14]} Kg8 {[%emt 0:00:03]} 24. Qe6+ {[%emt 0:01:54]} Kh8 {[%emt 0:00:06]} 25. Qxd5 {[%emt 0:01:30]} Qc8 {[%emt 0:00:16]} 26. Rc1 {[%emt 0:00:49]} Nc6 {[%emt 0:00:03]} 27. Qg2 {[%emt 0:12:07]} Qf5 {[%emt 0:01:17]} 28. O-O {[%emt 0:01:27]} d5 {[%emt 0:03:01]} 29. f4 {[%emt 0:06:17]} d4 {[%emt 0:07:00]} 30. fxe5 {[%emt 0:00:35]} Qxe5 {[%emt 0:00:07]} 31. Bf2 {[%emt 0:00:37]} Bd6 {[%emt 0:01:13]} 32. Rce1 {[%emt 0:01:43]} Qg7 {[%emt 0:01:51]} 33. Re6 {[%emt 0:01:06]} Rad8 {[%emt 0:00:03]} 34. Qg4 {[%emt 0:05:14]} Kg8 {[%emt 0:07:06]} 35. Qh5 {[%emt 0:00:50]} Ne5 {[%emt 0:02:30]} 36. Bxd4 {[%emt 0:00:48]} Rxf1+ {[%emt 0:02:25]} 37. Kxf1 {[%emt 0:00:02]} Qf7+ {[%emt 0:00:11]} 38. Qxf7+ {[%emt 0:00:04]} Nxf7 {[%emt 0:00:02]} 39. g6 {[%emt 0:00:53]} Nh6 {[%emt 0:00:17]} 40. Bf6 {[%emt 0:00:11]} Rf8 {[%emt 0:00:21]} 41. g7 {[%emt 0:00:24]} Rxf6+ {[%emt 0:01:48]} 42. Rxf6 {[%emt 0:00:11]} Nf7 {[%emt 0:00:01]} 43. Rg6 {[%emt 0:00:17]} Bf4 {[%emt 0:04:28]} 44. Nd4 {[%emt 0:00:43]} Nh6 {[%emt 0:00:11]} 45. Ne6 {[%emt 0:00:09]} Bc1 {[%emt 0:00:13]} 46. Rf6 {[%emt 0:00:29]} Nf7 {[%emt 0:00:03]} 47. Rf2 {[%emt 0:00:07]} Bh6 {[%emt 0:00:35]} 48. h5 {[%emt 0:00:50]} b5 {[%emt 0:00:40]} 49. Rc2 {[%emt 0:00:11]} Kh7 {[%emt 0:00:27]} 50. Rc7 {[%emt 0:00:26]} Nd6 {[%emt 0:00:56]} 51. Rc6 {[%emt 0:00:43]} Nf5 {[%emt 0:00:10]} 52. Rxa6 {[%emt 0:00:12]} Ng3+ {[%emt 0:00:14]} 53. Kg2 {[%emt 0:00:45]} Nxh5 {[%emt 0:00:07]} 54. Rb6 {[%emt 0:00:27]} Nxg7 {[%emt 0:00:07]} 55. Nxg7 {[%emt 0:00:08]} Kxg7 {[%emt 0:00:04]} 56. Rxb5 {[%emt 0:00:04]} Kf7 {[%emt 0:00:07]} 57. Kf3 {[%emt 0:00:07]} Ke7 {[%emt 0:00:03]} 58. Ke4 {[%emt 0:00:05]} Kd7 {[%emt 0:00:02]} 59. Kd5 {[%emt 0:00:05]} Kc7 {[%emt 0:00:03]} 60. Kc4 {[%emt 0:00:19]} Kc6 {[%emt 0:00:30]} 61. Rf5 {[%emt 0:00:11]} Be3 {[%emt 0:02:00]} 62. Rf6+ {[%emt 0:00:04]} Kb7 {[%emt 0:00:02]} 63. Kb5 {[%emt 0:00:05]} Ba7 {[%emt 0:06:36]} 64. Rf7+ {[%emt 0:00:38]} Ka8 {[%emt 0:00:00]} 65. Kc6 {[%emt 0:00:25]} Bb8 {[%emt 0:00:00]} 66. Rf3 {[%emt 0:00:35]} Ba7 {[%emt 0:00:00]} 67. Kb5 {[%emt 0:01:39]} Bb8 {[%emt 0:00:00]} 68. Ka6 {[%emt 0:00:06]} Be5 {[%emt 0:00:00]} 69. Rf8+ {[%emt 0:00:10]} Bb8 {[%emt 0:00:00]} 70. Rf7 {[%emt 0:00:04]} Be5 {[%emt 0:00:00]} 71. Ra7+ {[%emt 0:00:10]} Kb8 {[%emt 0:00:00]} 72. Re7 {[%emt 0:00:06]} Bd4 {[%emt 0:00:00]} 73. Re8+ {[%emt 0:00:51]} Kc7 {[%emt 0:00:00]} 74. Re4 {[%emt 0:04:41]} Bf2 {[%emt 0:00:00]} 75. Re7+ {[%emt 0:02:07]} Kb8 {[%emt 0:00:00]} 76. Rb7+ {[%emt 0:00:16]} Ka8 {[%emt 0:00:00]} 77. Rb5 {[%emt 0:00:19]} Bg1 {[%emt 0:02:01]} 78. Rg5 {[%emt 0:00:25]} Ba7 {[%emt 0:00:12]} 79. Rg8+ {[%emt 0:00:10]} Bb8 {[%emt 0:00:03]} 80. Rg7 {[%emt 0:00:04]} Be5 {[%emt 0:00:30]} 81. Ra7+ {[%emt 0:00:45]} Kb8 {[%emt 0:00:07]} 82. Rd7 {[%emt 0:00:06]} Ka8 {[%emt 0:00:31]} 83. Kb6 {[%emt 0:00:08]} Bg3 {[%emt 0:00:40]} 84. Rd3 {[%emt 0:00:33]} Bf2+ {[%emt 0:00:46]} 85. Kc7 {[%emt 0:00:17]} Bg1 {[%emt 0:01:17]} 86. Rh3 {[%emt 0:01:52]} Bd4 {[%emt 0:00:32]} 87. Rh4 {[%emt 0:00:31]} Bf2 {[%emt 0:00:18]} 88. Rg4 {[%emt 0:00:02]} Be3 {[%emt 0:00:48]} 89. Re4 {[%emt 0:02:02]} Bf2 {[%emt 0:00:32]} 90. Rb4 {[%emt 0:00:37]} Be3 {[%emt 0:00:54]} 91. Rb8+ {[%emt 0:00:17]} Ka7 {[%emt 0:00:04]} 92. Re8 {[%emt 0:00:16]} Bb6+ {[%emt 0:00:33]} 93. Kc8 {[%emt 0:00:27]} Ka8 {[%emt 0:00:38]} 94. Kd7+ {[%emt 0:00:34]} Kb7 {[%emt 0:00:08]} 95. Re4 {[%emt 0:00:48]} Bf2 {[%emt 0:01:03]} 96. Rb4+ {[%emt 0:00:29]} Ka8 {[%emt 0:00:08]} 97. Kc8 {[%emt 0:01:32]} Be3 {[%emt 0:00:54]} 98. Rb8+ {[%emt 0:00:25]} Ka7 {[%emt 0:00:14]} 99. Rb3 {[%emt 0:00:10]} Bc5 {[%emt 0:01:19]} 100. Kc7 {[%emt 0:00:50]} Ka8 {[%emt 0:00:20]} 101. Rb8+ {[%emt 0:00:04]} Ka7 {[%emt 0:00:03]} 102. Rb5 {[%emt 0:00:03]} 1-0

[Event "New York Summer IM-C 2022"]
[Site "New York"]
[Date "2022.07.11"]
[Round "8.5"]
[White "Adewumi, Tanitoluwa"]
[Black "Nakada, Akira"]
[Result "1-0"]
[ECO "B13"]
[WhiteElo "2309"]
[BlackElo "2297"]
[Annotator "ChessBase"]
[PlyCount "87"]
[EventDate "2022.07.08"]
[EventType "tourn"]
[EventCountry "USA"]
[SourceTitle "playchess.com"]
[Source "ChessBase"]
[SourceQuality "1"]
[TimeControl "5400+30"]

1. e4 {[%emt 0:00:03]} c6 {[%emt 0:04:56]} 2. d4 {[%emt 0:00:11]} d5 {[%emt 0:00:06]} 3. exd5 {[%emt 0:00:22]} cxd5 {[%emt 0:00:06]} 4. Bd3 {[%emt 0:00:06]} Nf6 {[%emt 0:00:04]} 5. c3 {[%emt 0:00:11]} Bg4 {[%emt 0:00:08]} 6. Qb3 {[%emt 0:00:20]} Qc7 {[%emt 0:00:05]} 7. Ne2 {[%emt 0:00:54]} Bxe2 {[%emt 0:00:06]} 8. Bxe2 {[%emt 0:00:05]} e6 {[%emt 0:00:11]} 9. O-O {[%emt 0:00:10]} Bd6 {[%emt 0:00:25]} 10. g3 {[%emt 0:00:15]} Nc6 {[%emt 0:00:29]} 11. Nd2 {[%emt 0:00:09]} O-O {[%emt 0:00:12]} 12. Nf3 {[%emt 0:00:04]} Ne4 {[%emt 0:00:45]} 13. Ng5 {[%emt 0:00:38]} Nxg5 {[%emt 0:03:09]} 14. Bxg5 {[%emt 0:00:01]} h6 {[%emt 0:00:56]} 15. Be3 {[%emt 0:00:45]} Na5 {[%emt 0:02:58]} 16. Qc2 {[%emt 0:00:43]} Nc4 {[%emt 0:00:12]} 17. Bc1 {[%emt 0:23:12]} Rac8 {[%emt 0:02:36]} 18. Bd3 {[%emt 0:01:00]} b5 {[%emt 0:01:55]} 19. Qe2 {[%emt 0:00:57]} b4 {[%emt 0:03:29]} 20. b3 {[%emt 0:05:21]} Nb6 {[%emt 0:01:41]} 21. c4 {[%emt 0:00:27]} Nd7 {[%emt 0:30:19]} 22. cxd5 {[%emt 0:37:13]} exd5 {[%emt 0:01:23]} 23. Bxh6 {[%emt 0:14:01]} Nf6 {[%emt 0:02:39]} 24. Rac1 {[%emt 0:03:04]} Qb6 {[%emt 0:00:58]} 25. Be3 {[%emt 0:01:48]} Rfe8 {[%emt 0:00:32]} 26. Qf3 {[%emt 0:00:11]} Bf8 {[%emt 0:00:21]} 27. Qf5 {[%emt 0:01:19]} Rxc1 {[%emt 0:02:04]} 28. Rxc1 {[%emt 0:00:10]} g6 {[%emt 0:00:04]} 29. Qf4 {[%emt 0:02:37]} Bg7 {[%emt 0:01:06]} 30. Rc5 {[%emt 0:00:34]} Bf8 {[%emt 0:00:06]} 31. Rc2 {[%emt 0:01:06]} Bg7 {[%emt 0:00:05]} 32. Kg2 {[%emt 0:01:08]} Qa5 {[%emt 0:10:46]} 33. h3 {[%emt 0:01:25]} Ne4 {[%emt 0:04:25]} 34. Bxe4 {[%emt 0:01:16]} dxe4 {[%emt 0:00:11]} 35. Rc7 {[%emt 0:00:53]} Qd5 {[%emt 0:02:53]} 36. Rxa7 {[%emt 0:00:58]} Rc8 {[%emt 0:09:23]} 37. Re7 {[%emt 0:01:30]} f5 {[%emt 0:01:46]} 38. h4 {[%emt 0:03:07]} Bf6 {[%emt 0:03:17]} 39. Ra7 {[%emt 0:00:48]} Ra8 {[%emt 0:03:33]} 40. Rxa8+ {[%emt 0:00:15]} Qxa8 {[%emt 0:00:01]} 41. h5 {[%emt 0:00:44]} Qxa2 {[%emt 0:02:23]} 42. Qh6 {[%emt 0:00:11]} Qe2 {[%emt 0:02:30]} 43. Qxg6+ {[%emt 0:00:08]} Bg7 {[%emt 0:00:03]} 44. h6 {[%emt 0:00:27]} 1-0

[Event "New York Summer IM-C 2022"]
[Site "New York"]
[Date "2022.07.11"]
[Round "9.1"]
[White "Nakada, Akira"]
[Black "Huston, Gus"]
[Result "1-0"]
[ECO "D41"]
[WhiteElo "2297"]
[BlackElo "2282"]
[Annotator "ChessBase"]
[PlyCount "103"]
[EventDate "2022.07.08"]
[EventType "tourn"]
[EventCountry "USA"]
[SourceTitle "playchess.com"]
[Source "ChessBase"]
[SourceQuality "1"]
[TimeControl "5400+30"]

1. c4 {[%emt 0:00:09]} Nf6 {[%emt 0:00:01]} 2. Nc3 {[%emt 1:31:21]} c5 {[%emt 0:00:04]} 3. Nf3 {[%emt 0:00:00]} Nc6 {[%emt 0:00:04]} 4. e3 {[%emt 0:00:00]} d5 {[%emt 0:00:12]} 5. cxd5 {[%emt 0:00:00]} Nxd5 {[%emt 0:00:04]} 6. Bb5 {[%emt 0:00:00]} Nxc3 {[%emt 0:00:07]} 7. bxc3 {[%emt 0:00:00]} e6 {[%emt 0:00:16]} 8. O-O {[%emt 0:00:00]} Bd7 {[%emt 0:00:38]} 9. d4 {[%emt 0:00:00]} Be7 {[%emt 0:00:07]} 10. Qe2 {[%emt 0:00:00]} O-O {[%emt 0:00:19]} 11. Bd2 {[%emt 0:00:00]} Qc7 {[%emt 0:02:24]} 12. e4 {[%emt 0:00:00]} Rfd8 {[%emt 0:00:17]} 13. Bd3 {[%emt 0:00:00]} Be8 {[%emt 0:00:10]} 14. d5 {[%emt 0:00:00]} exd5 {[%emt 0:03:32]} 15. exd5 {[%emt 0:00:00]} Rxd5 {[%emt 0:00:51]} 16. Bxh7+ {[%emt 0:00:00]} Kh8 {[%emt 0:00:19]} 17. Be4 {[%emt 0:00:00]} Rdd8 {[%emt 1:29:35]} 18. Ng5 {[%emt 0:00:00]} Bxg5 {[%emt 0:00:00]} 19. Qh5+ {[%emt 0:00:00]} Bh6 {[%emt 0:00:00]} 20. Bxh6 {[%emt 0:00:00]} f5 {[%emt 0:00:00]} 21. Qxf5 {[%emt 0:00:00]} Bg6 {[%emt 0:00:00]} 22. Qxg6 {[%emt 0:00:00]} gxh6 {[%emt 0:00:00]} 23. Qxh6+ {[%emt 0:00:00]} Kg8 {[%emt 0:00:00]} 24. c4 {[%emt 0:00:00]} Nd4 {[%emt 0:00:00]} 25. Bd5+ {[%emt 0:00:00]} Rxd5 {[%emt 0:00:00]} 26. cxd5 {[%emt 0:00:00]} Rd8 {[%emt 0:00:00]} 27. Rfe1 {[%emt 0:00:00]} Qg7 {[%emt 0:00:00]} 28. Qxg7+ {[%emt 0:00:00]} Kxg7 {[%emt 0:00:00]} 29. Re7+ {[%emt 0:00:00]} Kf6 {[%emt 0:00:00]} 30. Rxb7 {[%emt 0:00:00]} Rxd5 {[%emt 0:00:00]} 31. Rxa7 {[%emt 0:00:00]} Kf5 {[%emt 0:00:00]} 32. Re1 {[%emt 0:00:00]} c4 {[%emt 0:00:00]} 33. Rf7+ {[%emt 0:00:00]} Kg5 {[%emt 0:00:00]} 34. Rc7 {[%emt 0:00:00]} c3 {[%emt 0:00:00]} 35. h4+ {[%emt 0:00:00]} Kxh4 {[%emt 0:00:00]} 36. Rxc3 {[%emt 0:00:00]} Nf5 {[%emt 0:00:00]} 37. a4 {[%emt 0:00:00]} Ra5 {[%emt 0:00:00]} 38. Ra3 {[%emt 0:00:00]} Kg4 {[%emt 0:00:00]} 39. Re4+ {[%emt 0:00:00]} Kg5 {[%emt 0:00:00]} 40. Rb4 {[%emt 0:00:00]} Rc5 {[%emt 0:00:00]} 41. a5 {[%emt 0:00:00]} Nh6 {[%emt 0:00:00]} 42. a6 {[%emt 0:00:00]} Ng4 {[%emt 0:00:00]} 43. Rxg4+ {[%emt 0:00:00]} Kh5 {[%emt 0:00:00]} 44. Rg5+ {[%emt 0:00:00]} Kh4 {[%emt 0:00:00]} 45. Rxc5 {[%emt 0:00:00]} Kg4 {[%emt 0:00:00]} 46. Rf3 {[%emt 0:00:00]} Kh4 {[%emt 0:00:00]} 47. Kh2 {[%emt 0:00:00]} Kg4 {[%emt 0:00:00]} 48. a7 {[%emt 0:00:00]} Kh4 {[%emt 0:00:00]} 49. a8=N {[%emt 0:00:00]} Kg4 {[%emt 0:00:00]} 50. Rf8 {[%emt 0:00:00]} Kh4 {[%emt 0:00:00]} 51. g3+ {[%emt 0:00:00]} Kg4 {[%emt 0:00:00]} 52. f3# {[%emt 0:00:00]} 1-0

[Event "New York Summer IM-C 2022"]
[Site "New York"]
[Date "2022.07.12"]
[Round "9.3"]
[White "Asavasaetakul, Chawit"]
[Black "Hardaway, Brewington"]
[Result "1/2-1/2"]
[ECO "D02"]
[WhiteElo "1948"]
[BlackElo "2175"]
[Annotator "ChessBase"]
[PlyCount "53"]
[EventDate "2022.07.08"]
[EventType "tourn"]
[EventCountry "USA"]
[SourceTitle "playchess.com"]
[Source "ChessBase"]
[SourceQuality "1"]
[TimeControl "5400+30"]

1. d4 {[%emt 0:04:48]} Nf6 {[%emt 0:00:07]} 2. Nf3 {[%emt 0:00:11]} e6 {[%emt 0:00:03]} 3. Bf4 {[%emt 0:00:07]} b6 {[%emt 0:00:04]} 4. c3 {[%emt 0:00:32]} Bb7 {[%emt 0:00:05]} 5. Nbd2 {[%emt 0:00:07]} Be7 {[%emt 0:00:05]} 6. e3 {[%emt 0:00:05]} O-O {[%emt 0:00:10]} 7. h3 {[%emt 0:00:06]} c5 {[%emt 0:00:04]} 8. Bd3 {[%emt 0:00:10]} d5 {[%emt 0:01:11]} 9. O-O {[%emt 0:00:16]} Nc6 {[%emt 0:00:14]} 10. Ne5 {[%emt 0:05:07]} Bd6 {[%emt 0:01:53]} 11. Nxc6 {[%emt 0:00:17]} Bxc6 {[%emt 0:00:02]} 12. Bxd6 {[%emt 0:00:08]} Qxd6 {[%emt 0:00:04]} 13. Nf3 {[%emt 0:06:19]} Nd7 {[%emt 0:00:21]} 14. Qe2 {[%emt 0:01:01]} f5 {[%emt 0:06:19]} 15. Bb5 {[%emt 0:01:32]} Bxb5 {[%emt 0:04:24]} 16. Qxb5 {[%emt 0:00:12]} Rf6 {[%emt 0:00:03]} 17. c4 {[%emt 0:03:35]} a6 {[%emt 0:07:57]} 18. Qb3 {[%emt 0:01:26]} cxd4 {[%emt 0:05:01]} 19. exd4 {[%emt 0:00:42]} dxc4 {[%emt 0:00:07]} 20. Qxc4 {[%emt 0:00:09]} b5 {[%emt 0:00:03]} 21. Qe2 {[%emt 0:02:57]} Nb6 {[%emt 0:10:19]} 22. Rac1 {[%emt 0:01:19]} Nd5 {[%emt 0:07:46]} 23. Qe5 {[%emt 0:03:06]} Rd8 {[%emt 0:02:13]} 24. Rc8 {[%emt 0:03:34]} Rff8 {[%emt 0:00:05]} 25. Rxd8 {[%emt 0:00:12]} Rxd8 {[%emt 0:00:01]} 26. Re1 {[%emt 0:02:51]} Nc7 {[%emt 0:04:14]} 27. Rc1 {[%emt 0:03:15]} 1/2-1/2

[Event "New York Summer IM-C 2022"]
[Site "New York"]
[Date "2022.07.12"]
[Round "9.4"]
[White "Rozman, Levy"]
[Black "Le, Nguyen Khoi Nguyen"]
[Result "1-0"]
[ECO "A28"]
[WhiteElo "2333"]
[BlackElo "2001"]
[Annotator "ChessBase"]
[PlyCount "67"]
[EventDate "2022.07.08"]
[EventType "tourn"]
[EventCountry "USA"]
[SourceTitle "playchess.com"]
[Source "ChessBase"]
[SourceQuality "1"]
[TimeControl "5400+30"]

1. c4 {[%emt 0:00:01]} e5 {[%emt 0:11:03]} 2. Nf3 {[%emt 0:01:07]} Nc6 {[%emt 1:20:27]} 3. d4 {[%emt 0:01:07]} exd4 {[%emt 0:00:00]} 4. Nxd4 {[%emt 0:00:06]} Bb4+ {[%emt 0:00:00]} 5. Nc3 {[%emt 0:01:57]} Nf6 {[%emt 0:00:00]} 6. g3 {[%emt 0:02:16]} Ne4 {[%emt 0:00:00]} 7. Qd3 {[%emt 0:02:59]} Nxc3 {[%emt 0:00:00]} 8. bxc3 {[%emt 0:00:12]} Bc5 {[%emt 0:00:00]} 9. Be3 {[%emt 0:03:43]} Bb6 {[%emt 0:00:00]} 10. c5 {[%emt 0:01:44]} Ba5 {[%emt 0:00:00]} 11. Nb3 {[%emt 0:01:29]} O-O {[%emt 0:00:00]} 12. Bg2 {[%emt 0:01:37]} Qf6 {[%emt 0:00:00]} 13. Rc1 {[%emt 0:02:17]} b6 {[%emt 0:00:00]} 14. O-O {[%emt 0:03:30]} Rb8 {[%emt 0:00:00]} 15. Bf4 {[%emt 0:02:02]} Ne5 {[%emt 0:00:00]} 16. Qd4 {[%emt 0:01:40]} Re8 {[%emt 0:00:00]} 17. Nxa5 {[%emt 0:00:12]} bxa5 {[%emt 0:00:00]} 18. Rb1 {[%emt 0:00:16]} Rxb1 {[%emt 0:00:00]} 19. Rxb1 {[%emt 0:00:05]} d6 {[%emt 0:00:00]} 20. Rb8 {[%emt 0:10:43]} g5 {[%emt 0:00:00]} 21. cxd6 {[%emt 0:05:10]} gxf4 {[%emt 0:00:00]} 22. gxf4 {[%emt 0:02:08]} Nd7 {[%emt 0:00:00]} 23. dxc7 {[%emt 0:29:03]} Qxd4 {[%emt 0:00:00]} 24. cxd4 {[%emt 0:00:05]} Kf8 {[%emt 0:00:00]} 25. e4 {[%emt 0:02:57]} Ke7 {[%emt 0:03:43]} 26. e5 {[%emt 0:00:44]} Nb6 {[%emt 0:01:04]} 27. d5 {[%emt 0:02:43]} Kd7 {[%emt 0:01:13]} 28. d6 {[%emt 0:00:08]} f6 {[%emt 0:00:02]} 29. Bh3+ {[%emt 0:03:01]} Kc6 {[%emt 0:00:01]} 30. Rxc8 {[%emt 0:01:09]} Rxc8 {[%emt 0:01:01]} 31. Bxc8 {[%emt 0:00:06]} Nxc8 {[%emt 0:00:06]} 32. Kg2 {[%emt 0:00:09]} Kd7 {[%emt 0:00:35]} 33. Kg3 {[%emt 0:00:25]} Nb6 {[%emt 0:01:50]} 34. Kg4 {[%emt 0:00:51]} 1-0

[Event "New York Summer IM-C 2022"]
[Site "New York"]
[Date "2022.07.11"]
[Round "9.5"]
[White "Poliannikov, Danila"]
[Black "Bortnyk, Mykola"]
[Result "1/2-1/2"]
[ECO "B04"]
[WhiteElo "2309"]
[BlackElo "2463"]
[Annotator "ChessBase"]
[PlyCount "47"]
[EventDate "2022.07.08"]
[EventType "tourn"]
[EventCountry "USA"]
[SourceTitle "playchess.com"]
[Source "ChessBase"]
[SourceQuality "1"]
[TimeControl "5400+30"]

1. e4 {[%emt 0:00:02]} Nf6 {[%emt 0:00:39]} 2. e5 {[%emt 0:00:04]} Nd5 {[%emt 0:00:09]} 3. d4 {[%emt 0:00:08]} d6 {[%emt 0:00:03]} 4. Nf3 {[%emt 0:00:03]} dxe5 {[%emt 0:00:29]} 5. Nxe5 {[%emt 0:00:03]} c6 {[%emt 0:00:06]} 6. Be2 {[%emt 0:00:04]} Bf5 {[%emt 0:00:05]} 7. O-O {[%emt 0:00:11]} Nd7 {[%emt 0:00:02]} 8. Nf3 {[%emt 0:00:57]} e6 {[%emt 0:00:07]} 9. c4 {[%emt 0:00:42]} N5f6 {[%emt 0:00:06]} 10. Nc3 {[%emt 0:07:09]} Bd6 {[%emt 0:01:09]} 11. Be3 {[%emt 0:05:01]} Qc7 {[%emt 0:03:11]} 12. h3 {[%emt 0:01:46]} O-O {[%emt 0:00:51]} 13. Qd2 {[%emt 0:05:04]} Rad8 {[%emt 0:03:49]} 14. c5 {[%emt 0:11:33]} Be7 {[%emt 0:00:23]} 15. Bf4 {[%emt 0:00:34]} Qc8 {[%emt 0:00:11]} 16. b4 {[%emt 0:01:12]} Ne4 {[%emt 0:04:02]} 17. Nxe4 {[%emt 0:00:40]} Bxe4 {[%emt 0:00:02]} 18. Rfd1 {[%emt 0:05:29]} Bxf3 {[%emt 0:08:01]} 19. Bxf3 {[%emt 0:00:14]} e5 {[%emt 0:00:04]} 20. Qe3 {[%emt 0:07:39]} Bxc5 {[%emt 0:02:25]} 21. dxc5 {[%emt 0:00:20]} exf4 {[%emt 0:00:03]} 22. Qxf4 {[%emt 0:00:03]} Nf6 {[%emt 1:15:33]} 23. Bg4 {[%emt 0:09:27]} Nxg4 {[%emt 0:00:00]} 24. Qxg4 {[%emt 0:00:09]} 1/2-1/2